bitfinex-derivatives/quotes_SOLF0:USTF0_20241016
["timestamp","ask_amount","ask_price","bid_price","bid_amount"]
[1729049659046,3.2392,154.38,154.34,8.12]
[1729049659447,3.2392,154.38,154.34,4.88]
[1729049661452,3.2392,154.38,154.33,3.2401]
[1729049661453,3.2392,154.38,154.33,8.1201]
[1729049662454,1.0,154.39,154.33,4.88]
[1729049662953,3.2395,154.37,154.33,4.88]
[1729049663154,15.01,154.39,154.33,4.88]
[1729049663457,1.0,154.39,154.33,8.1202]
[1729049663664,3.2394,154.38,154.33,8.1202]
[1729049663862,3.2394,154.38,154.34,8.96]
[1729049664362,12.1994,154.38,154.34,8.96]
[1729049665551,3.2394,154.38,154.34,8.96]
[1729049665753,9.96,154.39,154.34,12.1999]
[1729049665754,13.1991,154.39,154.34,12.1999]
[1729049665950,9.96,154.39,154.34,12.1999]
[1729049667447,3.2392,154.38,154.34,12.1999]
[1729049672750,1.0,154.39,154.35,8.96]
[1729049672955,1.0,154.39,154.35,12.1998]
[1729049673168,1.0,154.39,154.36,8.96]
[1729049674570,1.0,154.39,154.36,12.1995]
[1729049680069,1.0,154.39,154.33,4.88]
[1729049680266,3.2392,154.38,154.34,3.2398]
[1729049680467,3.2392,154.38,154.36,8.96]
[1729049680865,1.0,154.39,154.36,8.96]
[1729049681066,4.2391,154.39,154.36,8.96]
[1729049686879,1.0,154.39,154.36,8.96]
[1729049687177,4.239,154.39,154.36,8.96]
[1729049688872,1.0,154.39,154.33,4.88]
[1729049689073,1.0,154.39,154.34,8.96]
[1729049689769,3.2395,154.37,154.34,8.96]
[1729049690277,1.0,154.39,154.34,8.96]
[1729049690575,3.2393,154.38,154.34,8.96]
[1729049691875,3.2395,154.37,154.33,4.88]
[1729049692173,8.96,154.38,154.33,13.84]
[1729049693274,8.96,154.38,154.33,8.96]
[1729049693485,3.2397,154.36,154.33,8.96]
[1729049700193,3.2399,154.35,154.33,8.96]
[1729049700489,1.0,154.39,154.34,8.96]
[1729049700693,9.96,154.39,154.34,8.96]
[1729049701396,3.2394,154.37,154.34,8.96]
[1729049702194,8.96,154.38,154.32,1.3364]
[1729049702497,3.2399,154.35,154.33,8.96]
[1729049702699,8.96,154.38,154.33,8.96]
[1729049703085,3.2398,154.36,154.33,8.96]
[1729049704290,3.2398,154.36,154.34,8.96]
[1729049705791,1.0,154.39,154.34,8.96]
[1729049705998,1.0,154.39,154.37,8.96]
[1729049708494,1.0,154.39,154.36,3.2395]
[1729049710604,1.0,154.39,154.35,8.96]
[1729049710794,1.0,154.39,154.35,12.1997]
[1729049711195,4.239,154.39,154.35,12.1997]
[1729049713301,8.96,154.38,154.32,1.3364]
[1729049713599,8.96,154.38,154.32,10.2964]
[1729049714400,8.96,154.38,154.32,13.5368]
[1729049715504,3.2395,154.37,154.32,13.5368]
[1729049717110,3.2397,154.36,154.32,10.2964]
[1729049717295,1.0,154.39,154.32,10.2964]
[1729049717608,8.96,154.38,154.32,10.2964]
[1729049717802,3.2397,154.36,154.32,10.2964]
[1729049719398,3.2397,154.36,154.32,13.5369]
[1729049721113,3.2397,154.36,154.32,10.2964]
[1729049723104,8.96,154.35,154.29,1.3077]
[1729049723405,8.96,154.33,154.28,13.84]
[1729049724403,3.2405,154.32,154.28,13.84]
[1729049725495,3.2405,154.32,154.28,17.0813]
[1729049725700,3.2399,154.35,154.3,8.96]
[1729049727106,3.2399,154.35,154.3,12.2009]
[1729049727411,3.2401,154.34,154.3,12.2009]
[1729049727806,12.2001,154.34,154.3,12.2009]
[1729049729713,3.2401,154.34,154.31,8.96]
[1729049731414,8.96,154.36,154.31,8.96]
[1729049731614,3.2399,154.35,154.31,8.96]
[1729049736014,4.5701,154.37,154.32,12.2003]
[1729049736217,3.2396,154.37,154.33,8.96]
[1729049737018,3.2396,154.37,154.33,12.2002]
[1729049737720,3.2396,154.36,154.32,17.0804]
[1729049739321,12.1995,154.37,154.32,17.0804]
[1729049740923,8.96,154.37,154.32,17.0804]
[1729049741124,12.1996,154.36,154.32,4.88]
[1729049743213,8.96,154.36,154.32,8.1204]
[1729049744124,12.1996,154.36,154.32,8.1204]
[1729049748422,9.1191,154.39,154.34,3.2399]
[1729049748725,4.2391,154.39,154.35,8.96]
[1729049749727,3.2392,154.38,154.35,8.96]
[1729049751728,1.0,154.39,154.35,8.96]
[1729049751918,1.0,154.39,154.35,12.1996]
[1729049752322,4.2391,154.39,154.35,8.96]
[1729049753429,1.0,154.39,154.35,12.1998]
[1729049753736,1.0,154.39,154.35,8.96]
[1729049754142,4.2391,154.39,154.35,8.96]
[1729049755136,1.0,154.39,154.37,3.2393]
[1729049755445,1.0,154.39,154.37,8.96]
[1729049755626,12.1977,154.46,154.41,8.96]
[1729049755830,8.96,154.46,154.41,8.96]
[1729049756426,3.2379,154.45,154.41,8.96]
[1729049756633,8.96,154.46,154.41,8.96]
[1729049757029,8.96,154.46,154.4,8.96]
[1729049757234,4.2381,154.44,154.4,8.96]
[1729049758337,3.2385,154.42,154.37,12.1993]
[1729049758524,8.96,154.42,154.36,4.88]
[1729049758837,8.96,154.42,154.36,13.84]
[1729049759534,3.2387,154.41,154.36,17.0795]
[1729049760439,3.2387,154.41,154.36,8.1195]
[1729049760735,3.2391,154.39,154.36,4.88]
[1729049761136,8.96,154.37,154.29,8.96]
[1729049761337,8.96,154.35,154.3,4.88]
[1729049761640,8.96,154.35,154.28,1.4452]
[1729049761641,8.96,154.33,154.28,1.4452]
[1729049761938,8.96,154.33,154.29,4.88]
[1729049763443,8.96,154.33,154.29,8.121]
[1729049764240,12.2001,154.34,154.29,17.081]
[1729049769335,12.2003,154.33,154.28,4.6865]
[1729049769534,8.96,154.3,154.25,4.88]
[1729049770537,12.201,154.3,154.25,8.1219]
[1729049770738,12.201,154.3,154.25,3.2419]
[1729049770944,12.201,154.3,154.25,8.1219]
[1729049774839,8.96,154.3,154.25,4.88]
[1729049775041,4.88,154.34,154.28,8.96]
[1729049775245,8.96,154.33,154.28,8.96]
[1729049775445,8.96,154.33,154.29,8.96]
[1729049775446,12.2003,154.33,154.29,8.96]
[1729049776347,3.2402,154.34,154.29,12.201]
[1729049776543,8.96,154.37,154.32,8.96]
[1729049776752,1.395,154.39,154.35,8.96]
[1729049776944,8.96,154.41,154.36,8.96]
[1729049777545,3.239,154.39,154.36,8.96]
[1729049777749,3.239,154.39,154.35,8.96]
[1729049779649,8.96,154.41,154.36,8.96]
[1729049780637,12.1987,154.41,154.36,12.1995]
[1729049781355,1.3492,154.42,154.37,8.96]
[1729049781554,4.5876,154.42,154.37,12.1992]
[1729049781849,9.96,154.44,154.39,8.96]
[1729049782049,3.2383,154.43,154.39,8.96]
[1729049785751,3.2383,154.43,154.38,17.0792]
[1729049785953,8.96,154.41,154.38,4.88]
[1729049786155,8.96,154.39,154.35,4.88]
[1729049786352,8.96,154.37,154.32,8.96]
[1729049786550,12.1995,154.37,154.33,4.88]
[1729049787255,8.96,154.36,154.33,4.88]
[1729049787447,8.96,154.36,154.31,8.96]
[1729049787644,8.96,154.33,154.29,4.88]
[1729049787847,14.01,154.35,154.29,4.88]
[1729049788443,3.2403,154.33,154.29,4.88]
[1729049788648,14.01,154.35,154.29,4.88]
[1729049789459,3.2401,154.34,154.29,8.1211]
[1729049792055,14.01,154.31,154.25,4.88]
[1729049793559,3.2413,154.29,154.25,4.88]
[1729049794265,14.01,154.31,154.25,8.1218]
[1729049795260,3.2411,154.3,154.25,4.88]
[1729049796364,3.2411,154.29,154.25,4.88]
[1729049797667,3.2405,154.32,154.27,3.2414]
[1729049799965,3.2401,154.34,154.29,3.241]
[1729049800172,3.2401,154.34,154.29,8.121]
[1729049800365,14.01,154.35,154.29,4.88]
[1729049800573,3.2403,154.33,154.29,4.88]
[1729049800770,14.01,154.33,154.23,83.99]
[1729049800970,3.2413,154.29,154.24,8.1221]
[1729049801275,14.01,154.31,154.24,4.88]
[1729049802066,3.2411,154.29,154.24,8.122]
[1729049802267,14.01,154.31,154.24,4.88]
[1729049803369,4.5582,154.32,154.24,4.88]
[1729049803575,1.3176,154.32,154.24,4.88]
[1729049803972,3.2407,154.31,154.26,3.2416]
[1729049804364,1.3176,154.32,154.24,4.88]
[1729049804571,4.5581,154.32,154.27,3.2415]
[1729049805178,3.241,154.3,154.25,3.2418]
[1729049806974,1.3176,154.32,154.24,4.88]
[1729049807175,3.2408,154.31,154.26,3.2417]
[1729049807567,4.5581,154.32,154.27,3.2414]
[1729049807967,3.2405,154.32,154.27,3.2414]
[1729049808171,14.01,154.35,154.28,4.88]
[1729049808368,1.3942,154.36,154.28,4.88]
[1729049809175,3.2403,154.33,154.29,3.241]
[1729049809376,3.2403,154.33,154.28,4.88]
[1729049810377,3.2403,154.33,154.28,8.1211]
[1729049810573,3.2403,154.33,154.28,4.88]
[1729049810871,1.3942,154.36,154.28,8.1212]
[1729049811078,3.2408,154.31,154.28,4.88]
[1729049811264,14.01,154.33,154.23,83.99]
[1729049811574,14.01,154.33,154.24,4.88]
[1729049811770,3.2408,154.31,154.24,4.88]
[1729049811976,3.2408,154.31,154.26,3.2416]
[1729049815276,3.2408,154.31,154.21,14.01]
[1729049815277,14.01,154.31,154.21,14.01]
[1729049815467,3.2416,154.27,154.22,9.5321]
[1729049816374,3.2416,154.27,154.22,6.2897]
[1729049816680,14.01,154.27,154.22,4.88]
[1729049817372,3.2421,154.25,154.22,4.88]
[1729049817684,3.2421,154.25,154.2,8.123]
[1729049818077,3.2421,154.25,154.2,3.243]
[1729049818279,3.2421,154.25,154.2,8.123]
[1729049819378,3.2421,154.25,154.2,3.243]
[1729049819574,3.2421,154.25,154.2,8.123]
[1729049820981,3.2418,154.26,154.21,3.2426]
[1729049821181,1.3944,154.3,154.22,14.01]
[1729049821486,1.3944,154.3,154.26,3.2416]
[1729049821880,1.3944,154.3,154.25,4.88]
[1729049822184,1.3944,154.3,154.25,8.1218]
[1729049822581,4.6353,154.3,154.25,8.1218]
[1729049824583,18.89,154.34,154.25,4.88]
[1729049824879,18.89,154.34,154.25,6.3169]
[1729049825583,3.2407,154.31,154.27,3.2415]
[1729049825986,3.2407,154.31,154.26,3.2416]
[1729049829175,3.2411,154.29,154.25,6.3169]
[1729049829381,18.89,154.34,154.25,6.3169]
[1729049830087,14.01,154.32,154.25,6.3169]
[1729049830983,3.2411,154.3,154.25,6.3169]
[1729049831380,3.2411,154.3,154.22,3.2424]
[1729049831381,3.2415,154.27,154.22,3.2424]
[1729049831697,14.01,154.28,154.22,4.88]
[1729049832184,3.2421,154.25,154.22,4.88]
[1729049832392,14.01,154.26,154.19,4.88]
[1729049832784,3.2421,154.25,154.2,3.243]
[1729049840495,14.01,154.26,154.19,4.88]
[1729049840695,3.2415,154.27,154.22,3.2424]
[1729049840894,14.01,154.28,154.19,18.89]
[1729049841095,2.8416,154.29,154.19,4.88]
[1729049841302,1.3953,154.29,154.23,14.01]
[1729049841500,3.2407,154.31,154.24,4.86]
[1729049842102,3.2407,154.31,154.26,3.2416]
[1729049843402,3.2409,154.3,154.25,3.2419]
[1729049844798,3.2413,154.28,154.23,3.2422]
[1729049850207,14.01,154.27,154.18,1.3504]
[1729049850409,14.01,154.25,154.18,4.86]
[1729049850613,14.01,154.22,154.16,1.0]
[1729049850909,3.2429,154.21,154.16,5.86]
[1729049851092,2.7823,154.24,154.16,1.0]
[1729049851093,14.01,154.2,154.16,1.0]
[1729049851496,3.2434,154.19,154.16,1.0]
[1729049854599,14.01,154.22,154.16,1.0]
[1729049854906,8.1228,154.21,154.16,4.2437]
[1729049855210,4.88,154.21,154.16,1.0]
[1729049855405,4.88,154.21,154.17,3.2436]
[1729049856106,4.88,154.21,154.16,1.0]
[1729049856314,14.01,154.2,154.16,1.0]
[1729049856804,3.2436,154.18,154.16,1.0]
[1729049857699,14.01,154.2,154.16,1.0]
[1729049858313,4.88,154.21,154.16,1.0]
[1729049858611,8.1228,154.21,154.16,4.2437]
[1729049858807,14.01,154.2,154.16,1.0]
[1729049859009,3.2436,154.18,154.16,1.0]
[1729049860111,3.243,154.2,154.16,1.0]
[1729049860705,3.243,154.2,154.16,4.2438]
[1729049861413,3.2432,154.19,154.16,1.0]
[1729049863305,18.89,154.21,154.16,1.0]
[1729049863506,3.2435,154.18,154.16,1.0]
[1729049865315,3.2436,154.17,154.16,1.0]
[1729049866012,18.89,154.17,154.12,1.0]
[1729049866721,3.2442,154.15,154.12,1.0]
[1729049867312,18.89,154.17,154.12,1.0]
[1729049867506,4.88,154.17,154.12,1.0]
[1729049868122,8.1238,154.17,154.13,3.2444]
[1729049872024,8.1238,154.17,154.12,1.0]
[1729049872218,2.6578,154.18,154.12,1.0]
[1729049872423,14.01,154.21,154.12,5.88]
[1729049872720,14.01,154.21,154.15,3.2439]
[1729049872721,18.89,154.21,154.15,3.2439]
[1729049872924,3.2431,154.2,154.15,3.2439]
[1729049873221,14.01,154.19,154.12,7.2575]
[1729049873427,3.244,154.16,154.12,7.2575]
[1729049873730,14.01,154.19,154.12,10.502]
[1729049873917,3.2437,154.17,154.12,1.0]
[1729049875533,3.2437,154.17,154.12,4.2446]
[1729049876225,14.01,154.2,154.12,1.0]
[1729049876432,3.2435,154.18,154.13,3.2444]
[1729049879327,3.2435,154.18,154.14,3.2442]
[1729049879529,3.2435,154.18,154.12,1.0]
[1729049880615,3.2435,154.18,154.13,3.2444]
[1729049881533,3.2437,154.17,154.13,3.2444]
[1729049881823,14.01,154.18,154.12,1.0]
[1729049882925,3.2439,154.16,154.12,1.0]
[1729049884430,3.2439,154.16,154.12,4.2446]
[1729049885032,3.2439,154.16,154.12,1.0]
[1729049886125,8.1235,154.18,154.13,3.2443]
[1729049890234,8.1235,154.18,154.14,3.2442]
[1729049890635,4.88,154.18,154.14,3.2442]
[1729049891824,3.22844027,154.21,154.12,1.0]
[1729049892023,8.97,154.21,154.16,8.97]
[1729049893241,8.97,154.21,154.18,3.2433]
[1729049893940,3.2427,154.22,154.18,3.2433]
[1729049895140,8.1225,154.23,154.15,4.88]
[1729049895339,4.88,154.23,154.15,4.88]
[1729049895643,3.2427,154.22,154.18,3.2432]
[1729049895937,4.88,154.23,154.15,4.88]
[1729049896138,14.01,154.26,154.16,14.01]
[1729049896339,14.01,154.26,154.22,3.2425]
[1729049896737,14.01,154.26,154.19,4.88]
[1729049897641,17.2518,154.26,154.21,3.2426]
[1729049898546,3.242,154.25,154.21,3.2426]
[1729049901448,14.01,154.26,154.21,3.2426]
[1729049901640,17.2518,154.26,154.21,3.2426]
[1729049902041,3.2418,154.26,154.19,4.88]
[1729049902343,14.01,154.26,154.19,4.88]
[1729049902650,14.01,154.26,154.12,1.0]
[1729049902651,14.01,154.22,154.17,4.86]
[1729049903146,17.2527,154.22,154.17,8.1035]
[1729049903346,14.01,154.22,154.17,4.86]
[1729049904443,3.2429,154.21,154.17,4.86]
[1729049908214,14.01,154.22,154.12,15.01]
[1729049908418,14.01,154.2,154.14,3.2442]
[1729049909285,3.2434,154.18,154.13,8.1043]
[1729049909674,3.2434,154.18,154.13,3.2443]
[1729049910071,17.2534,154.18,154.13,3.2443]
[1729049910274,17.2534,154.18,154.12,9.1045]
[1729049910275,3.2438,154.17,154.12,9.1045]
[1729049910578,3.2438,154.17,154.12,5.86]
[1729049910768,14.01,154.18,154.12,5.86]
[1729049911074,14.01,154.18,154.13,3.2444]
[1729049912176,14.01,154.16,154.12,1.0]
[1729049912389,14.01,154.14,154.12,1.0]
[1729049912782,3.2445,154.13,154.12,1.0]
[1729049915975,12.2145,154.13,154.12,1.0]
[1729049916494,8.97,154.14,154.12,1.0]
[1729049923319,13.5533,154.15,154.12,1.0]
[1729049925777,8.97,154.16,154.12,1.0]
[1729049925983,8.97,154.18,154.12,9.97]
[1729049926179,4.86,154.19,154.12,9.97]
[1729049926180,13.83,154.19,154.14,8.97]
[1729049926570,17.0732,154.19,154.14,12.2142]
[1729049930371,3.2438,154.17,154.12,13.2146]
[1729049930562,8.97,154.18,154.12,13.2146]
[1729049930563,8.97,154.18,154.12,9.97]
[1729049931279,12.2135,154.18,154.14,3.2442]
[1729049933373,8.97,154.18,154.14,3.2442]
[1729049938479,19.45,154.28,154.15,8.97]
[1729049938480,1.3965,154.22,154.15,8.97]
[1729049938778,13.83,154.22,154.16,8.97]
[1729049939079,3.2428,154.21,154.16,12.2138]
[1729049939277,3.2428,154.21,154.16,8.97]
[1729049939665,12.2128,154.21,154.16,12.2138]
[1729049941380,3.243,154.2,154.16,12.2138]
[1729049942080,3.243,154.2,154.16,8.97]
[1729049942579,8.97,154.19,154.15,12.214]
[1729049942780,8.97,154.19,154.15,3.244]
[1729049942967,8.97,154.19,154.14,13.83]
[1729049943174,12.2132,154.19,154.14,13.83]
[1729049943976,8.97,154.19,154.15,3.2439]
[1729049944986,12.213,154.2,154.15,12.2139]
[1729049948377,12.213,154.2,154.15,3.2439]
[1729049948579,8.97,154.17,154.12,14.83]
[1729049949081,8.97,154.17,154.13,3.2444]
[1729049949277,8.97,154.16,154.12,1.0]
[1729049949680,8.97,154.14,154.12,1.0]
[1729049950183,4.86,154.19,154.12,1.0]
[1729049950184,8.97,154.13,154.12,1.0]
[1729049950486,8.97,154.13,154.07,4.86]
[1729049950682,8.97,154.1,154.06,4.6529]
[1729049952285,8.97,154.09,154.04,8.1062]
[1729049953290,8.97,154.09,154.03,1.0]
[1729049953480,8.97,154.07,154.03,1.0]
[1729049954283,8.97,154.08,154.03,9.97]
[1729049954884,8.97,154.08,154.04,3.2462]
[1729049955386,8.97,154.08,154.03,9.97]
[1729049955580,8.97,154.08,154.03,13.2165]
[1729049956189,8.97,154.08,154.04,3.2463]
[1729049956783,3.2452,154.1,154.04,3.2463]
[1729049956985,8.97,154.09,154.04,3.2463]
[1729049958178,4.86,154.11,154.04,8.97]
[1729049958380,8.97,154.1,154.04,8.97]
[1729049958583,8.97,154.12,154.06,8.97]
[1729049958891,12.2148,154.12,154.06,12.2159]
[1729049959792,3.2449,154.11,154.06,12.2159]
[1729049960786,8.97,154.12,154.07,8.97]
[1729049961089,10.3017,154.13,154.08,8.97]
[1729049961678,8.97,154.12,154.07,8.97]
[1729049961891,8.97,154.1,154.06,1.3384]
[1729049963393,8.97,154.1,154.06,4.5842]
[1729049968894,8.97,154.1,154.06,3.2458]
[1729049973301,8.97,154.1,154.05,13.83]
[1729049973302,4.5764,154.13,154.08,12.2154]
[1729049973595,13.5464,154.13,154.08,12.2154]
[1729049975996,10.3017,154.13,154.08,8.97]
[1729049976195,3.2448,154.12,154.08,8.97]
[1729049977403,3.2448,154.12,154.08,12.2154]
[1729049978893,10.3017,154.13,154.08,12.2154]
[1729049979098,13.5462,154.13,154.08,12.2154]
[1729049982205,4.86,154.17,154.12,8.97]
[1729049982410,8.97,154.18,154.12,8.97]
[1729049982902,8.97,154.18,154.14,12.2142]
[1729049983112,7.5693,154.2,154.15,8.97]
[1729049983306,16.5393,154.2,154.15,8.97]
[1729049983606,19.7824,154.2,154.15,12.214]
[1729049984514,3.2435,154.18,154.13,8.1044]
[1729049984812,3.2435,154.18,154.14,8.97]
[1729049985215,16.5393,154.2,154.14,8.97]
[1729049985415,3.2432,154.19,154.14,12.2142]
[1729049990028,12.2137,154.17,154.12,8.1046]
[1729050000816,3.2433,154.19,154.14,12.2141]
[1729050001919,251.68964183,154.3,154.16,8.97]
[1729050002119,8.97,154.23,154.12,4.86]
[1729050002323,8.97,154.2,154.15,8.97]
[1729050003132,12.2131,154.2,154.15,12.2139]
[1729050004218,3.2431,154.2,154.15,12.2139]
[1729050004417,12.2128,154.21,154.16,3.2438]
[1729050004826,8.97,154.21,154.15,8.97]
[1729050005019,3.2431,154.2,154.15,12.214]
[1729050006435,4.86,154.24,154.18,8.97]
[1729050006633,8.97,154.23,154.18,8.97]
[1729050007031,3.2427,154.22,154.18,8.97]
[1729050007223,4.86,154.24,154.18,8.97]
[1729050007422,3.2427,154.22,154.18,8.97]
[1729050008230,13.83,154.24,154.18,8.97]
[1729050008430,12.2122,154.24,154.19,8.97]
[1729050008735,8.97,154.24,154.19,8.97]
[1729050009534,3.2423,154.23,154.19,12.2131]
[1729050011840,13.83,154.25,154.19,8.97]
[1729050012031,17.0721,154.25,154.21,8.97]
[1729050012232,13.83,154.25,154.21,8.97]
[1729050013036,3.2422,154.24,154.2,8.97]
[1729050013933,8.97,154.24,154.18,12.2133]
[1729050014243,8.97,154.24,154.18,8.97]
[1729050014939,8.97,154.24,154.19,8.97]
[1729050015238,10.4177,154.27,154.21,8.97]
[1729050015937,3.2418,154.26,154.21,8.97]
[1729050016138,10.4177,154.27,154.21,8.97]
[1729050016637,13.6593,154.27,154.21,12.2127]
[1729050017431,3.2418,154.26,154.21,8.97]
[1729050018236,4.6892,154.27,154.22,8.97]
[1729050018539,3.2415,154.27,154.22,8.97]
[1729050019135,12.2118,154.26,154.21,12.2127]
[1729050020447,8.1013,154.29,154.24,12.2121]
[1729050020635,3.2413,154.29,154.25,8.97]
[1729050024241,3.2414,154.28,154.25,8.97]
[1729050024437,1.0,154.31,154.25,8.97]
[1729050024746,3.241,154.3,154.27,8.97]
[1729050028638,3.241,154.3,154.26,8.97]
[1729050029148,3.241,154.3,154.24,4.86]
[1729050029149,3.2415,154.27,154.24,4.86]
[1729050029444,3.2415,154.27,154.24,13.83]
[1729050030134,3.2414,154.28,154.24,13.83]
[1729050031546,8.97,154.3,154.24,4.86]
[1729050031847,3.2419,154.26,154.22,4.86]
[1729050032550,3.2419,154.26,154.21,12.2126]
[1729050032750,12.212,154.25,154.22,4.86]
[1729050032951,8.97,154.25,154.22,4.86]
[1729050033451,3.2423,154.24,154.22,4.86]
[1729050033649,8.97,154.25,154.22,4.86]
[1729050034441,12.212,154.25,154.22,4.86]
[1729050045057,3.242,154.25,154.22,4.86]
[1729050047755,8.97,154.25,154.18,2.8289]
[1729050047952,8.97,154.22,154.07,6.4915]
[1729050048152,8.97,154.21,154.18,4.86]
[1729050048358,12.2131,154.2,154.15,12.214]
[1729050048573,8.97,154.2,154.16,4.86]
[1729050048767,8.97,154.18,154.16,4.86]
[1729050048967,8.97,154.18,154.13,13.83]
[1729050049669,8.97,154.18,154.14,8.97]
[1729050050069,12.2135,154.18,154.14,8.97]
[1729050051861,3.2435,154.18,154.14,8.97]
[1729050054270,1.3848,154.24,154.17,8.97]
[1729050054462,8.97,154.23,154.17,8.97]
[1729050055268,3.2429,154.21,154.17,8.97]
[1729050060570,8.97,154.23,154.17,8.97]
[1729050060772,3.2424,154.23,154.19,8.97]
[1729050061576,6.2448,154.24,154.19,8.97]
[1729050061879,3.2426,154.22,154.19,8.97]
[1729050062269,3.2428,154.21,154.17,13.83]
[1729050063380,3.2426,154.22,154.18,8.97]
[1729050066181,3.2426,154.22,154.17,8.1036]
[1729050066383,3.2426,154.22,154.18,8.97]
[1729050067074,8.97,154.19,154.13,4.86]
[1729050067279,8.97,154.19,154.13,13.83]
[1729050068587,8.97,154.19,154.13,17.0743]
[1729050068588,3.2436,154.18,154.13,17.0743]
[1729050071587,3.2442,154.15,154.1,4.6266]
[1729050071786,8.97,154.14,154.1,15.2115]
[1729050072487,12.2144,154.14,154.1,15.2115]
[1729050072689,12.2144,154.14,154.1,13.83]
[1729050073285,8.97,154.13,154.07,3.2457]
[1729050073485,8.97,154.11,154.07,4.86]
[1729050073883,8.97,154.13,154.07,13.83]
[1729050074086,4.86,154.15,154.09,8.97]
[1729050074386,8.97,154.14,154.09,8.97]
[1729050074787,12.2143,154.14,154.09,8.97]
[1729050074991,3.2443,154.14,154.1,8.97]
[1729050075388,3.2443,154.14,154.09,8.97]
[1729050075389,12.2143,154.14,154.09,8.97]
[1729050075891,3.2445,154.13,154.09,8.97]
[1729050076080,8.97,154.12,154.07,4.86]
[1729050076282,3.245,154.11,154.07,4.86]
[1729050076487,8.97,154.11,154.07,4.86]
[1729050076683,8.97,154.11,154.05,2.8139]
[1729050076891,12.2155,154.08,154.03,5.86]
[1729050077088,12.2155,154.08,154.03,14.83]
[1729050077491,8.97,154.08,154.03,9.97]
[1729050077690,3.2458,154.07,154.03,1.0]
[1729050078485,3.2454,154.09,154.04,8.97]
[1729050078686,8.97,154.12,154.07,8.97]
[1729050078895,8.97,154.11,154.07,8.97]
[1729050079291,3.2451,154.1,154.05,3.2461]
[1729050079488,8.97,154.1,154.04,8.97]
[1729050079690,8.97,154.1,154.03,1.0]
[1729050079896,8.97,154.09,154.03,1.0]
[1729050080094,8.97,154.09,154.03,9.97]
[1729050080490,3.2457,154.08,154.03,9.97]
[1729050080695,8.97,154.09,154.03,9.97]
[1729050081208,8.97,154.09,154.04,8.97]
[1729050081507,3.2455,154.08,154.04,8.97]
[1729050085005,8.97,154.09,154.03,1.0]
[1729050085210,3.2462,154.05,154.03,1.0]